Department family,Entity,Date,Expense type,Expense area,Supplier,Transaction number,Amount,VAT registration number
Dept of Health,MHRA,04/05/2016,Help desk and end user support,Information Management,CORETX MANAGE LIMITED,600103152,39650.00,123385037
Dept of Health,MHRA,04/05/2016,Infrastructure Services and Maintenance,Information Management,FOCUS GROUP EUROPE LTD,600103180,36660.00,976362481
Dept of Health,MHRA,05/05/2016,Infrastructure Services and Maintenance,Information Management,SUNGARD AVAILABILITY SERVICES (UK) LIMITED,600103161,161970.00,823829709
Dept of Health,MHRA,06/05/2016,Application Services and Maintenance,Information Management,ACCENTURE,600103177,218150.90,788629066
Dept of Health,MHRA,10/05/2016,Dilapidation Provision,Finance & Procurement,ZURICH ASSURANCE LTD,600103512,60780.00,107831677
Dept of Health,MHRA,12/05/2016,Infrastructure Services and Maintenance,Information Management,REDROCK CONSULTING LTD,600103592,96421.82,862247715
Dept of Health,MHRA,12/05/2016,Portfolio Services,Information Management,REDROCK CONSULTING LTD,600103619,30842.35,862247715
Dept of Health,MHRA,12/05/2016,Infrastructure Services and Maintenance,Information Management,REDROCK CONSULTING LTD,600103621,84509.45,862247715
Dept of Health,MHRA,13/05/2016,Testing Services,Information Management,HOME OFFICE,600102700,43350.00,888816061
Dept of Health,MHRA,13/05/2016,UK Hotel/Accommodation,Clinical Practice Research Datalink,CLARITY TRAVEL MANAGEMENT,600103661,114.00,197694731
Dept of Health,MHRA,13/05/2016,UK Rail/Tube/Tram,Clinical Practice Research Datalink,CLARITY TRAVEL MANAGEMENT,600103661,462.80,197694731
Dept of Health,MHRA,13/05/2016,UK Taxi,Clinical Practice Research Datalink,CLARITY TRAVEL MANAGEMENT,600103661,28.66,197694731
Dept of Health,MHRA,13/05/2016,Overseas Hotel/Accommodation,Clinical Practice Research Datalink,CLARITY TRAVEL MANAGEMENT,600103661,153.49,197694731
Dept of Health,MHRA,13/05/2016,Committee T&S,Clinical Practice Research Datalink,CLARITY TRAVEL MANAGEMENT,600103661,366.80,197694731
Dept of Health,MHRA,13/05/2016,Training inc T&S,Clinical Practice Research Datalink,CLARITY TRAVEL MANAGEMENT,600103661,10531.89,197694731
Dept of Health,MHRA,13/05/2016,UK Hotel/Accommodation,Communications,CLARITY TRAVEL MANAGEMENT,600103661,85.00,197694731
Dept of Health,MHRA,13/05/2016,UK Rail/Tube/Tram,Communications,CLARITY TRAVEL MANAGEMENT,600103661,485.55,197694731
Dept of Health,MHRA,13/05/2016,Training inc T&S,Communications,CLARITY TRAVEL MANAGEMENT,600103661,483.72,197694731
Dept of Health,MHRA,13/05/2016,UK Hotel/Accommodation,Directorate,CLARITY TRAVEL MANAGEMENT,600103661,106.60,197694731
Dept of Health,MHRA,13/05/2016,Overseas Air,Directorate,CLARITY TRAVEL MANAGEMENT,600103661,144.17,197694731
Dept of Health,MHRA,13/05/2016,Committee T&S,Directorate,CLARITY TRAVEL MANAGEMENT,600103661,178.10,197694731
Dept of Health,MHRA,13/05/2016,Training inc T&S,Directorate,CLARITY TRAVEL MANAGEMENT,600103661,74.50,197694731
Dept of Health,MHRA,13/05/2016,UK Hotel/Accommodation,Human Resources,CLARITY TRAVEL MANAGEMENT,600103661,448.00,197694731
Dept of Health,MHRA,13/05/2016,UK Rail/Tube/Tram,Information Management,CLARITY TRAVEL MANAGEMENT,600103661,217.20,197694731
Dept of Health,MHRA,13/05/2016,Training inc T&S,Information Management,CLARITY TRAVEL MANAGEMENT,600103661,105.97,197694731
Dept of Health,MHRA,13/05/2016,UK Air,"Inspection, Enforcement & Standards",CLARITY TRAVEL MANAGEMENT,600103661,3833.32,197694731
Dept of Health,MHRA,13/05/2016,UK Hotel/Accommodation,"Inspection, Enforcement & Standards",CLARITY TRAVEL MANAGEMENT,600103661,24264.03,197694731
Dept of Health,MHRA,13/05/2016,UK Parking,"Inspection, Enforcement & Standards",CLARITY TRAVEL MANAGEMENT,600103661,26.44,197694731
Dept of Health,MHRA,13/05/2016,UK Rail/Tube/Tram,"Inspection, Enforcement & Standards",CLARITY TRAVEL MANAGEMENT,600103661,13886.05,197694731
Dept of Health,MHRA,13/05/2016,Overseas Air,"Inspection, Enforcement & Standards",CLARITY TRAVEL MANAGEMENT,600103661,28339.20,197694731
Dept of Health,MHRA,13/05/2016,Overseas Hotel/Accommodation,"Inspection, Enforcement & Standards",CLARITY TRAVEL MANAGEMENT,600103661,11661.97,197694731
Dept of Health,MHRA,13/05/2016,Overseas Rail/Tram,"Inspection, Enforcement & Standards",CLARITY TRAVEL MANAGEMENT,600103661,673.10,197694731
Dept of Health,MHRA,13/05/2016,Committee T&S,"Inspection, Enforcement & Standards",CLARITY TRAVEL MANAGEMENT,600103661,108.30,197694731
Dept of Health,MHRA,13/05/2016,Training inc T&S,"Inspection, Enforcement & Standards",CLARITY TRAVEL MANAGEMENT,600103661,9887.45,197694731
Dept of Health,MHRA,13/05/2016,UK Rail/Tube/Tram,Licensing,CLARITY TRAVEL MANAGEMENT,600103661,65.50,197694731
Dept of Health,MHRA,13/05/2016,Overseas Hotel/Accommodation,Licensing,CLARITY TRAVEL MANAGEMENT,600103661,171.09,197694731
Dept of Health,MHRA,13/05/2016,Committee T&S,Licensing,CLARITY TRAVEL MANAGEMENT,600103661,1981.35,197694731
Dept of Health,MHRA,13/05/2016,Training inc T&S,Licensing,CLARITY TRAVEL MANAGEMENT,600103661,5062.69,197694731
Dept of Health,MHRA,13/05/2016,UK Air,Medical Devices,CLARITY TRAVEL MANAGEMENT,600103661,167.25,197694731
Dept of Health,MHRA,13/05/2016,UK Hotel/Accommodation,Medical Devices,CLARITY TRAVEL MANAGEMENT,600103661,906.17,197694731
Dept of Health,MHRA,13/05/2016,UK Rail/Tube/Tram,Medical Devices,CLARITY TRAVEL MANAGEMENT,600103661,1242.30,197694731
Dept of Health,MHRA,13/05/2016,Overseas Air,Medical Devices,CLARITY TRAVEL MANAGEMENT,600103661,6463.09,197694731
Dept of Health,MHRA,13/05/2016,Overseas Hotel/Accommodation,Medical Devices,CLARITY TRAVEL MANAGEMENT,600103661,1217.50,197694731
Dept of Health,MHRA,13/05/2016,Overseas Rail/Tram,Medical Devices,CLARITY TRAVEL MANAGEMENT,600103661,145.50,197694731
Dept of Health,MHRA,13/05/2016,Training inc T&S,Medical Devices,CLARITY TRAVEL MANAGEMENT,600103661,3613.76,197694731
Dept of Health,MHRA,13/05/2016,UK Rail/Tube/Tram,Finance & Procurement,CLARITY TRAVEL MANAGEMENT,600103661,182.60,197694731
Dept of Health,MHRA,13/05/2016,UK Rail/Tube/Tram,Policy,CLARITY TRAVEL MANAGEMENT,600103661,121.00,197694731
Dept of Health,MHRA,13/05/2016,Overseas Air,Policy,CLARITY TRAVEL MANAGEMENT,600103661,186.51,197694731
Dept of Health,MHRA,13/05/2016,Overseas Hotel/Accommodation,Policy,CLARITY TRAVEL MANAGEMENT,600103661,672.49,197694731
Dept of Health,MHRA,13/05/2016,Overseas Rail/Tram,Policy,CLARITY TRAVEL MANAGEMENT,600103661,525.50,197694731
Dept of Health,MHRA,13/05/2016,Training inc T&S,Policy,CLARITY TRAVEL MANAGEMENT,600103661,271.40,197694731
Dept of Health,MHRA,13/05/2016,UK Rail/Tube/Tram,Vigilance and Risk Management of Medicines,CLARITY TRAVEL MANAGEMENT,600103661,37.50,197694731
Dept of Health,MHRA,13/05/2016,Overseas Air,Vigilance and Risk Management of Medicines,CLARITY TRAVEL MANAGEMENT,600103661,1357.57,197694731
Dept of Health,MHRA,13/05/2016,Overseas Hotel/Accommodation,Vigilance and Risk Management of Medicines,CLARITY TRAVEL MANAGEMENT,600103661,681.29,197694731
Dept of Health,MHRA,13/05/2016,Training inc T&S,Vigilance and Risk Management of Medicines,CLARITY TRAVEL MANAGEMENT,600103661,1069.87,197694731
Dept of Health,MHRA,17/05/2016,Capital Expenditure,Information Management,REDROCK CONSULTING LTD,600103594,54210.96,862247715
Dept of Health,MHRA,17/05/2016,"Service, Integration & Management",Information Management,REDROCK CONSULTING LTD,600103612,26381.31,862247715
Dept of Health,MHRA,17/05/2016,Capital Expenditure,Information Management,HITACHI CONSULTING,600103763,51600.00,887129187
Dept of Health,MHRA,17/05/2016,File Storage,Policy,IRON MOUNTAIN (UK) LTD,600103642,26886.94,607937516
Dept of Health,MHRA,20/05/2016,Infrastructure Services and Maintenance,Information Management,NTT DATA UK LIMITED,600103571,216358.13,159334590
Dept of Health,MHRA,20/05/2016,Testing Services,Information Management,HOME OFFICE,600103605,40440.00,888816061
Dept of Health,MHRA,23/05/2016,Capital Expenditure,Information Management,HITACHI CONSULTING,600103452,96000.00,887129187
Dept of Health,MHRA,23/05/2016,Enterprise Architecture,Information Management,REDROCK CONSULTING LTD,600103597,33403.78,862247715
Dept of Health,MHRA,23/05/2016,IT Security,Information Management,REDROCK CONSULTING LTD,600103603,34246.27,862247715
Dept of Health,MHRA,23/05/2016,Application Services and Maintenance,Information Management,ARKIVUM LIMITED,600103919,48180.00,107755411
Dept of Health,MHRA,23/05/2016,Capital Expenditure,Information Management,HITACHI CONSULTING,600103927,31560.00,887129187
Dept of Health,MHRA,25/05/2016,Infrastructure Services and Maintenance,Information Management,ACCENTURE,600103082,144146.04,788629066
Dept of Health,MHRA,27/05/2016,Capital Expenditure,Information Management,HITACHI CONSULTING,600103784,31560.00,887129187
Dept of Health,MHRA,27/05/2016,Capital Expenditure,Information Management,HITACHI CONSULTING,600103958,-31560.00,887129187
